Cogmind - Beta 16 @@@ ROGUE MODE // 2025.11.12 @ 23:25:37 Player: jumpy Result: Destroyed by S-43 Plague with Heavy Machine Gun Performance ------------- Evolutions (9) 4500 Regions Visited (25) 5000 Robots Destroyed (272) 1360 Value Destroyed (12559) 12559 Prototype IDs (25) 500 Alien Tech Used (5) 1000 Bonus (6351) 6351 TOTAL SCORE: 31270 Bonus ------- High Alert Combat Kills 1018 Follower Combat Kills 1213 Entered Garrisons 1200 Used RIF Installer 2000 Built Enhanced Grunts 300 A7 Reached Mainframe 300 Scanned by Researcher 500 Friendly Fire -180 Cogmind --------- Core Integrity 0/1600 Matter 35/300 Energy 99/100 System Corruption 1% Temperature Cool (0) Movement Core (50) Location -1/Access Parts ------- > --- POWER (2) -------- (None) > --- PROPULSION (8) --- (None) > --- UTILITY (12) ----- (None) > --- WEAPON (3) ------- (None) > --- INVENTORY (5) ---- Cooled Antimatter Reactor Light Quantum Reactor Core Cannon Improved Plasma Cutter Peak State ------------ > --- POWER ------------ Cooled Antimatter Reactor Quantum Reactor > --- PROPULSION ------- Centrium Heavy Treads Centrium Heavy Treads Centrium Heavy Treads > --- UTILITY ---------- Advanced Heat Sink Improved Cooling System Large Storage Unit Improved Targeting Computer Improved Targeting Computer Core Analyzer Core Analyzer Improved Weapon Cycler Advanced Transmission Jammer Centrium Medium Armor Plating > --- WEAPON ----------- Core Cannon Helical Railgun > --- INVENTORY -------- Reinforced Fission Core Medium Treads Armored Medium Treads Advanced Cryofiber Web Relay Coupler [NC] Transdimensional Reconstructor High-powered Transdimensional Reconstructor Supercharged TR Long-range Proton Cannon KE Penetrator Railgun Advanced KE Penetrator Heavy Rocket Launcher Remote Datajack Improved Plasma Cutter [Rating: 163] Favorites ----------- Power Cooled Deuterium Engine Engine Cooled Deuterium Engine Power Core Micro Fission Core Reactor Antimatter Reactor Propulsion Armored Treads Treads Armored Treads Leg Carbon-fiber Leg Flight Unit Field Propulsion Array Utility Core Analyzer Device Improved Heat Sink Storage Large Storage Unit Processor Core Analyzer Hackware Relay Coupler [Grunt] Protection Centrium Medium Armor Plating Weapon Precision Beam Rifle Energy Gun Precision Beam Rifle Energy Cannon Long-range Proton Cannon Ballistic Gun Railgun Launcher Rocket Array Special Weapon Remote Datajack Slashing Weapon Great Axe Special Melee Weapon Improved Datajack Build | -11 -10 -9 -8 -8 -8 -8 -7 -7 -7 -7 -7 -6 -6 -5 -5 -4 -4 -4 -4 -3 -3 -2 -1 -1 -1 ------- Run | Yrd Mat Mat Mat Gar Mat Gar Fac Was Fac Gar Fac Fac Gar Fac Gar Fac Ext Cet Arc Res Qua Res Acc Gar Acc Slots Evolved 18 | . . 2 2 . . . 2 . . . . 2 . 2 . 2 . . . 2 . 2 2 . . Power 1 | . . . . . . . . . . . . . . . . 1 . . . . . . . . . Propulsion 6 | . . . 1 . . . 1 . . . . . . 1 . 1 . . . . . 1 1 . . Utility 10 | . . 1 1 . . . 1 . . . . 2 . 1 . . . . . 2 . 1 1 . . Weapon 1 | . . 1 . . . . . . . . . . . . . . . . . . . . . . . Parts Attached 226 | 9 1 7 11 9 8 5 6 1 26 13 14 3 13 9 28 9 13 9 1 9 9 9 2 . 2 Power 25 | 1 . . 3 1 1 1 1 . 2 1 1 . 1 2 3 1 3 . . 1 1 1 . . . Engine 10 | 1 . . 1 . 1 1 1 . 2 . . . 1 1 1 . . . . . . . . . . Core 11 | . . . 2 1 . . . . . 1 1 . . 1 2 1 2 . . . . . . . . Reactor 4 | . . . . . . . . . . . . . . . . . 1 . . 1 1 1 . . . Propulsion 63 | 4 . 1 2 2 2 . 1 1 9 1 2 . 5 4 9 3 6 3 . . 2 3 1 . 2 Treads 22 | 2 . 1 2 2 2 . 1 1 5 . . . . . . . . 3 . . 2 1 . . . Leg 36 | 2 . . . . . . . . 4 1 2 . 5 4 9 3 6 . . . . . . . . Wheel . | . . . . . . . . . . . . . . . . . . . . . . . . . . Hover . | . . . . . . . . . . . . . . . . . . . . . . . . . . Flight 5 | . . . . . . . . . . . . . . . . . . . . . . 2 1 . 2 Utility 68 | 2 . 2 1 3 1 3 2 . 11 3 6 2 4 . 7 4 2 3 1 5 2 3 1 . . Device 32 | 1 . 1 . 2 . 2 1 . 5 . 2 1 3 . 4 1 1 1 . 4 . 2 1 . . Storage 6 | 1 . 1 . . . . . . 1 . 2 . . . . 1 . . . . . . . . . Processor 13 | . . . . . . . . . 4 1 1 1 . . 1 1 1 . . 1 2 . . . . Hackware 5 | . . . . . . 1 . . . 1 1 . . . 1 . . . 1 . . . . . . Protection 12 | . . . 1 1 1 . 1 . 1 1 . . 1 . 1 1 . 2 . . . 1 . . . Artifact . | . . . . . . . . . . . . . . . . . . . . . . . . . . Weapon 70 | 2 1 4 5 3 4 1 2 . 4 8 5 1 3 3 9 1 2 3 . 3 4 2 . . . Energy Gun 33 | . 1 3 4 2 3 . . . 4 1 4 1 3 1 5 . . . . . 1 . . . . Energy Cannon 2 | . . . . . . . . . . . . . . 1 . . . . . . 1 . . . . Ballistic Gun 23 | 2 . 1 . . . . . . . 5 1 . . . 4 1 1 2 . 3 1 2 . . . Ballistic Cannon . | . . . . . . . . . . . . . . . . . . . . . . . . . . Launcher 6 | . . . 1 . 1 . 1 . . . . . . 1 . . 1 . . . 1 . . . . Special Weapon 4 | . . . . 1 . . . . . 2 . . . . . . . 1 . . . . . . . Impact Weapon . | . . . . . . . . . . . . . . . . . . . . . . . . . . Slashing Weapon 1 | . . . . . . . 1 . . . . . . . . . . . . . . . . . . Piercing Weapon . | . . . . . . . . . . . . . . . . . . . . . . . . . . Special Melee Weapon 1 | . . . . . . 1 . . . . . . . . . . . . . . . . . . . Unidentified Prototypes 23 | . . . 1 . 1 . 2 . . . 3 1 . . . . . 3 . 3 6 3 . . . Corrupted Parts 4 | . . 1 . . . . . . . . . . . . . . . 3 . . . . . . . System Corruption 19 | . . 7 . . . . . . . . . . . . . . . 12 . . . . . . . Parts Lost 90 | . . . 1 4 . 2 . 9 3 6 . . 7 9 12 8 2 1 . . 20 . 2 1 3 Power 8 | . . . . . . . . 1 . . . . . 2 2 . . . . . 3 . . . . Propulsion 37 | . . . 1 2 . 1 . 2 1 1 . . 5 3 6 4 1 1 . . 5 . 1 1 2 Utility 27 | . . . . 1 . 1 . 3 . 1 . . 2 2 2 3 1 . . . 9 . 1 . 1 Weapon 18 | . . . . 1 . . . 3 2 4 . . . 2 2 1 . . . . 3 . . . . Highest Loss Streak 9 | . . . 1 2 . 1 . 9 2 3 . . 3 6 5 5 1 1 . . 8 . 2 3 3 To Critical Strikes 1 | . . . . . . . . . . . . . . . . . . . . . 1 . . . . Average Backups 12 | 4 6 8 15 18 19 19 19 18 6 7 10 13 12 14 13 14 14 15 14 15 12 3 3 3 3 Power 1 | . 1 2 1 2 2 2 2 1 . 1 1 2 2 1 . 1 1 2 2 2 1 . . 1 1 Propulsion 2 | 1 2 1 6 6 7 7 6 6 1 . . 1 . 1 1 . . . 1 2 1 . . . . Utility 2 | . 1 1 1 1 3 3 5 4 2 4 5 4 2 2 2 3 4 4 3 3 1 . . . . Weapon 4 | 1 2 2 5 5 4 5 4 3 . . 1 4 5 6 7 6 6 6 6 6 5 1 1 1 1 Tool/Special . | . . . . . . . . . . . . . . . . . . . . . . . . . . Unused Backups 45 | . . 1 3 1 4 . 5 11 2 2 . . 1 . 1 2 . . 1 2 7 . 1 . 1 Power 6 | . . . 2 . . . . 1 . . . . 1 . . . . . . 1 . . . . 1 Propulsion 18 | . . 1 1 1 4 . 5 4 . 1 . . . . . . . . . 1 . . . . . Utility 7 | . . . . . . . . 4 1 . . . . . . . . . . . 2 . . . . Weapon 10 | . . . . . . . . 1 . . . . . . 1 2 . . 1 . 4 . 1 . . Tool/Special 4 | . . . . . . . . 1 1 1 . . . . . . . . . . 1 . . . . Average Slot Usage (%) 86 | . 100 98 95 98 100 99 95 87 80 95 97 93 95 89 88 82 77 84 84 79 75 9 30 10 9 Engine 4 | . 14 11 5 . 8 9 7 6 6 2 . . 2 4 3 5 3 . . . . . . . . Core 2 | . . . 3 9 . . . . . 4 7 6 3 . . 5 6 5 5 1 1 . . . . Reactor 1 | . . . . . . . . . . . . . . . . . . 5 5 7 6 . 3 . . Treads 14 | . 28 22 27 27 27 26 30 26 21 . . . . . . . . 10 15 14 14 . . . . Leg 9 | . . . . . . . . . . 29 30 26 24 27 26 26 27 7 . . . . . . . Device 11 | . 14 20 18 17 18 17 15 13 5 7 7 6 10 11 11 10 5 10 10 13 15 1 7 4 3 Storage 6 | . 14 11 9 9 9 9 7 6 4 7 7 6 6 5 5 5 5 5 5 4 3 . . . . Processor 8 | . . . . . . . . . 15 16 15 19 20 15 13 10 12 15 15 14 14 . . . . Protection 5 | . . . 4 9 9 9 10 12 5 5 2 . 4 4 3 2 . 7 9 9 4 2 4 4 3 Energy Gun 14 | . 9 29 26 26 26 25 23 14 17 5 14 20 19 16 15 7 . . . . . . . . . Ballistic Gun 4 | . 18 3 . . . . . . . 12 4 . . . . 7 14 14 14 14 12 2 7 . . Peak Build Rating 163 | 7 7 16 31 34 37 41 51 55 44 52 54 58 64 66 70 84 94 136 135 160 163 45 73 29 39 Average Rating 56 | 5 7 14 24 31 35 38 48 45 35 46 48 57 58 61 62 75 75 123 133 145 130 22 69 22 22 On Entrance 49 | . 7 7 16 31 29 37 41 51 1 43 45 54 58 60 53 65 68 94 135 135 153 4 45 29 17 Avg Prop Armor Cover (%) 8 | . . . . . . . . . 16 . . . . . 8 . . 7 . . 7 . . . . Naked Turns 84 | . . . . . . . . 22 4 . . . . . . . . . . . 8 41 . . 9 Heaviest Build 92 | 14 15 56 66 62 64 63 73 76 39 36 41 41 51 51 58 68 78 91 90 92 92 15 34 2 2 Greatest Support 240 | 40 40 40 63 66 65 65 88 95 96 80 75 75 75 77 85 103 116 240 240 240 240 40 28 13 22 Greatest Overweight (x) 27 | . . 1 1 1 1 . . . 1 . . . 1 . 1 1 1 27 . . 6 . 1 . . Average Overweight (x) . | . . . . . . . . . . . . . . . . . . . . . . . . . . Largest Inventory Capacity 20 | 8 8 20 20 20 20 20 20 20 8 8 15 15 15 15 15 15 15 15 15 15 15 5 5 5 5 Average Capacity 14 | 7 8 12 20 20 20 20 20 18 6 8 11 15 15 15 15 15 15 15 15 15 14 5 5 5 5 Most Carried 20 | 6 7 11 20 20 20 20 20 20 8 8 14 14 15 15 15 15 15 15 15 15 15 5 5 4 5 Average Carried 13 | 4 6 8 15 18 19 19 19 18 6 7 10 13 12 14 13 14 14 14 14 14 12 4 4 4 4 Final Capacity 20 | 8 8 20 20 20 20 20 20 5 8 8 15 15 15 15 15 15 15 15 15 15 5 5 5 5 5 Final Carried 20 | 6 7 11 19 16 20 20 20 5 8 8 14 14 14 13 15 13 15 15 15 15 5 5 4 4 5 Class Distribution -------------------- 29% | Scavenger-Gunner 25% | Tank 16% | Mutant 16% | Gunner 7% | Scavenger-Tank 4% | Scavenger-Mutant Dominant Class ---------------- Mutant | -10/Materials Gunner | -9/Materials Tank | -8/Materials Tank | -8/Garrison Tank | -8/Materials Tank | -8/Garrison Tank | -7/Factory Tank | -7/Waste Mutant | -7/Factory Scavenger-Gunner | -7/Garrison Gunner | -7/Factory Gunner | -6/Factory Gunner | -6/Garrison Scavenger-Gunner | -5/Factory Scavenger-Gunner | -5/Garrison Scavenger-Gunner | -4/Factory Scavenger-Gunner | -4/Extension Scavenger-Tank | -4/Cetus Scavenger-Tank | -4/Archives Scavenger-Tank | -3/Research Scavenger-Gunner | -3/Quarantine Mutant | -2/Research Mutant | -1/Access Mutant | -1/Garrison Mutant | -1/Access Resources | -11 -10 -9 -8 -8 -8 -8 -7 -7 -7 -7 -7 -6 -6 -5 -5 -4 -4 -4 -4 -3 -3 -2 -1 -1 -1 ----------- Run | Yrd Mat Mat Mat Gar Mat Gar Fac Was Fac Gar Fac Fac Gar Fac Gar Fac Ext Cet Arc Res Qua Res Acc Gar Acc Matter Collected 6408 | 399 89 76 140 206 197 148 116 290 426 518 425 . 248 80 396 223 616 217 150 721 727 . . . . Remotely . | . . . . . . . . . . . . . . . . . . . . . . . . . . Salvage Created 13990 | 238 120 354 522 678 845 292 293 927 1538 613 871 . 892 684 1075 473 1148 197 180 973 1054 23 . . . Parts 584 | 22 9 16 30 29 45 10 4 . 37 34 40 . 30 23 44 20 46 8 5 72 60 . . . . Haulers Intercepted 12 | . . 1 2 . 3 . 1 . . . 3 . . . . 1 . . . . 1 . . . . Recyclers Shooed 6 | . . . . . 1 . 1 . 1 . 1 . . . . . . . . 1 1 . . . . Parts Field Recycled . | . . . . . . . . . . . . . . . . . . . . . . . . . . Retrieved Matter . | . . . . . . . . . . . . . . . . . . . . . . . . . . Parts Self-Destructed . | . . . . . . . . . . . . . . . . . . . . . . . . . . Prevented . | . . . . . . . . . . . . . . . . . . . . . . . . . . Parts Restored . | . . . . . . . . . . . . . . . . . . . . . . . . . . Kills | -11 -10 -9 -8 -8 -8 -8 -7 -7 -7 -7 -7 -6 -6 -5 -5 -4 -4 -4 -4 -3 -3 -2 -1 -1 -1 ------- Run | Yrd Mat Mat Mat Gar Mat Gar Fac Was Fac Gar Fac Fac Gar Fac Gar Fac Ext Cet Arc Res Qua Res Acc Gar Acc Combat Hostiles Destroyed 207 | . 3 5 12 18 14 6 5 5 23 17 8 . 18 12 17 7 13 2 2 9 10 1 . . . Melee 3 | . . . 1 1 . . . . 1 . . . . . . . . . . . . . . . . Guns 172 | . 3 4 7 16 13 5 3 . 17 17 8 . 18 9 15 5 10 2 2 9 9 . . . . AOE 21 | . . . 3 . 1 . . 5 2 . . . . 3 . 2 3 . . . 1 1 . . . Classes Destroyed 22 | 3 1 4 2 1 1 2 . 1 . 1 1 . . . 1 1 . . . 1 2 . . . . Worker 12 | 1 . 1 . . 1 . . . 1 . 2 . . . . . 1 . . 4 1 . . . . Builder 8 | . . . . . . . . . . . 1 . . . . . . . . 4 3 . . . . Tunneler 8 | 8 . . . . . . . . . . . . . . . . . . . . . . . . . Hauler 12 | . . 1 2 . 3 . 1 . . . 3 . . . . 1 . . . . 1 . . . . Recycler 18 | 1 . . . . 2 . . . 5 . 5 . . . . . 4 . . 1 . . . . . Mechanic 1 | . . . . . . . . . . . . . . . . . . . . . 1 . . . . Operator 1 | . . 1 . . . . . . . . . . . . . . . . . . . . . . . Watcher 4 | . . 1 . . . . . . . . . . . . . . . 1 . 1 1 . . . . Swarmer 37 | . . . 4 6 4 . . . . 7 . . 6 3 . . 7 . . . . . . . . Cutter 1 | . . . . . . . . . . 1 . . . . . . . . . . . . . . . Grunt 66 | . 3 3 4 7 3 1 4 . 13 3 2 . 7 6 5 3 . . . 2 . . . . . Brawler 6 | . . . . . 1 . . . 3 . 1 . 1 . . . . . . . . . . . . Duelist 2 | . . . . . . 1 . . . . . . . . . 1 . . . . . . . . . Researcher 1 | . . . . . . . . . . . . . . . . . . . . . 1 . . . . Sentry 42 | . . 2 3 4 6 2 . . 4 4 1 . 4 1 6 1 1 . 2 1 . . . . . Demolisher 2 | . . . . . . . . . . . . . . . . 2 . . . . . . . . . Specialist 3 | . . . . 1 . . . . . . . . . . 2 . . . . . . . . . . Hunter 17 | . . . 1 . . . . . . . . . . 2 3 . . . . 5 6 . . . . Programmer 20 | . . . . . . 2 1 . 3 2 4 . . . . . 3 . . . 4 1 . . . Heavy 1 | . . . . . . . . . . . . . . . . . . . . 1 . . . . . Behemoth 3 | . . . . . . . . . . . . . . . 1 . 2 . . . . . . . . Compactor 5 | . . . . . . . . 5 . . . . . . . . . . . . . . . . . Cetus Guard 2 | . . . . . . . . . . . . . . . . . . 2 . . . . . . . Best Kill Streak 9 | 2 1 3 4 4 6 2 3 5 5 5 5 . 6 3 3 4 8 3 2 9 6 1 . . . Combat Bots Only 6 | . 1 3 4 4 5 2 3 5 4 5 3 . 6 3 3 4 6 2 2 4 5 1 . . . Max Kills in Single Turn 3 | 1 1 1 3 1 2 1 1 2 3 2 3 . 2 3 1 2 3 1 1 2 2 1 . . . Gunslinging 1 | . . . . . 1 . . . . 1 1 . 1 . . . . . . 1 . . . . . Exploded 3 | . . . 3 . 1 . . 2 2 . . . . 2 . 2 2 . . . 1 1 . . . Melee 1 | . . . 1 1 . . . . 1 . . . . . . . . . . . . . . . . Uniques/NPCs Destroyed . | . . . . . . . . . . . . . . . . . . . . . . . . . . Combat | -11 -10 -9 -8 -8 -8 -8 -7 -7 -7 -7 -7 -6 -6 -5 -5 -4 -4 -4 -4 -3 -3 -2 -1 -1 -1 -------- Run | Yrd Mat Mat Mat Gar Mat Gar Fac Was Fac Gar Fac Fac Gar Fac Gar Fac Ext Cet Arc Res Qua Res Acc Gar Acc Hostile Shots Fired 1895 | . 33 11 40 69 54 26 79 5 149 194 27 . 215 111 105 41 44 12 6 64 421 39 33 67 50 Missed 619 | . 9 4 14 18 12 7 24 . 42 79 10 . 69 32 35 9 15 4 2 15 138 14 17 26 24 Hits 1276 | . 24 7 26 51 42 19 55 5 107 115 17 . 146 79 70 32 29 8 4 49 283 25 16 41 26 Melee 14 | . . . . . . . . 5 . . . . 2 . . 3 . . . . . . 4 . . Projectile 1262 | . 24 7 26 51 42 19 55 . 107 115 17 . 144 79 70 29 29 8 4 49 283 25 12 41 26 AOE 10 | . . . . . . . . . . 1 . . . . . 9 . . . . . . . . . Critical Strikes 41 | . . . 1 2 2 . 1 2 2 1 . . 3 3 1 5 2 . . 3 6 . 3 3 1 Actively Blocked 6 | . . . . . . . . . . . . . . . . . . . . . . . 3 3 . Part Disruptions 5 | . . . . . . . . . . . . . . . 2 1 . . . . 1 1 . . . Actively Blocked 1 | . . . . . . . . . . . . . . . . . . . . . . 1 . . . Damage Taken 22612 | . 262 93 593 670 548 284 863 739 1464 1329 255 . 1626 1428 1548 1328 645 150 196 1466 4162 887 407 856 813 Core 4496 | . 32 . 37 71 51 14 31 187 161 210 17 . 118 198 183 179 39 15 . 62 727 550 192 798 624 Absorbed by Shields 293 | . . . . . . . . . . . . . . . . . 227 66 . . . . . . . Redirected to Shielding 94 | . . . . . . . . . . . . . . . . . . . . . . 73 21 . . Regen/Repaired (Parts) 178 | . . . . . . . . . . . 82 . . 96 . . . . . . . . . . . Core Remaining (%) 67 | 100 87 100 . . . 68 . . . . 13 . 86 . 61 . . . 79 . 22 62 . . . Volleys Fired 649 | 32 22 19 21 46 41 26 18 13 68 43 25 . 37 26 54 19 32 10 8 34 51 4 . . . Largest 3 | 2 2 3 3 3 3 3 3 1 3 3 3 . 3 3 3 3 3 3 3 3 3 1 . . . Hottest 213 | 40 70 150 207 207 183 183 183 45 195 136 188 . 213 213 204 120 105 105 103 113 113 39 . . . Shots Fired 1644 | 64 44 57 55 119 109 60 54 13 171 92 54 . 105 71 134 55 90 33 17 102 141 4 . . . Gun 1579 | 64 44 57 54 112 102 51 54 . 171 89 51 . 102 67 129 55 88 33 14 102 140 . . . . Cannon 3 | . . . . . . . . . . . . . . 3 . . . . . . . . . . . Launcher 38 | . . . 1 6 7 3 . 13 . . . . . 1 . . 2 . . . 1 4 . . . Special 24 | . . . . 1 . 6 . . . 3 3 . 3 . 5 . . . 3 . . . . . . Kinetic 610 | 64 24 10 . . . . . . . 78 21 . . . 1 38 88 33 14 102 137 . . . . Thermal 864 | . 20 5 39 98 60 57 54 . 171 13 30 . 102 67 128 17 . . . . 3 . . . . Explosive 37 | . . . 1 6 7 3 . 13 . . . . . . . . 2 . . . 1 4 . . . Electromagnetic 118 | . . 42 15 15 42 . . . . . . . . 4 . . . . . . . . . . . Robot Hit Streak 49 | 5 5 6 17 11 16 17 18 9 49 13 7 . 21 13 17 12 18 9 11 10 13 2 . . . Robot Miss Streak 6 | 6 5 3 3 4 4 2 2 3 1 6 6 . 2 2 5 5 4 5 1 4 2 1 . . . Penetration Max 2 | . . . . . . . . . . . . . . . . 1 2 1 . 2 1 . . . . Secondary Targets 34 | . . . 1 . 3 1 1 . 3 1 2 . 6 3 3 2 2 . 1 2 3 . . . . Max Gunslinging Chain 2 | . . . 1 . 2 1 1 . 1 1 1 . 1 1 1 1 1 . 1 1 1 . . . . Shots Hit Robots 1109 | 34 21 37 36 60 70 35 44 14 143 68 38 . 73 52 97 31 51 21 15 69 97 3 . . . Core Hits 660 | 14 6 11 21 26 32 12 12 24 54 66 46 . 35 33 91 23 35 13 3 46 52 4 1 . . Critical Kills 9 | . . . . . . . . . . 1 . . . . . . . . 1 7 . . . . . Critical Parts Destroyed 16 | . . . . . . . . . . . . . . . . 1 . . 1 7 7 . . . . Critical Strikes 61 | . . 2 1 4 4 5 6 . 4 2 . . 3 3 3 1 . . 2 14 7 . . . . Burn 34 | . . . 1 4 4 5 6 . 4 1 . . 3 3 3 . . . . . . . . . . Destroy 25 | . . . . . . . . . . 1 . . . . . 1 . . 2 14 7 . . . . Corrupt 2 | . . 2 . . . . . . . . . . . . . . . . . . . . . . . Melee Attacks 6 | . . . . . . 3 2 1 . . . . . . . . . . . . . . . . . Impact . | . . . . . . . . . . . . . . . . . . . . . . . . . . Slashing 3 | . . . . . . . 2 1 . . . . . . . . . . . . . . . . . Piercing . | . . . . . . . . . . . . . . . . . . . . . . . . . . Sneak Attacks . | . . . . . . . . . . . . . . . . . . . . . . . . . . Combat Hostiles . | . . . . . . . . . . . . . . . . . . . . . . . . . . Follow-up Attacks . | . . . . . . . . . . . . . . . . . . . . . . . . . . Damage Inflicted 29777 | 353 276 609 902 1254 1456 626 829 4252 3072 1207 769 . 1569 1311 2043 1310 2247 715 319 1820 2672 161 5 . . Guns 23184 | 353 276 609 698 1193 1226 626 821 . 2677 1181 769 . 1566 1021 2043 922 1761 715 319 1807 2601 . . . . Cannons 72 | . . . . . . . . . . . . . . 72 . . . . . . . . . . . Explosions 6310 | . . . 175 56 213 . . 4218 375 . . . . 218 . 388 463 . . . 43 161 . . . Melee 20 | . . . . . . . . 20 . . . . . . . . . . . . . . . . . Ramming 191 | . . . 29 5 17 . 8 14 20 26 . . 3 . . . 23 . . 13 28 . 5 . . Kinetic 9781 | 353 126 86 . . . . . . . 1056 267 . . . 17 673 1761 715 319 1807 2601 . . . . Thermal 13196 | . 150 49 590 1092 821 626 821 . 3052 125 502 . 1566 1139 2026 637 . . . . . . . . . Explosive 5219 | . . . 121 . 213 . . 4218 . . . . . . . . 463 . . . 43 161 . . . Electromagnetic 1370 | . . 474 162 157 405 . . . . . . . . 172 . . . . . . . . . . . Impact . | . . . . . . . . . . . . . . . . . . . . . . . . . . Slashing 20 | . . . . . . . . 20 . . . . . . . . . . . . . . . . . Piercing . | . . . . . . . . . . . . . . . . . . . . . . . . . . Highest Corruption 12 | . . 7 . . . 1 2 2 2 4 4 . . . 2 . . 12 12 . 6 4 . 1 1 Average Corruption 3 | . . 7 . . . 1 1 2 1 3 4 . . . 1 . . 10 12 . 1 3 . 1 1 Corruption Purged 3 | . . . . . . . . . 3 . . . . . . . . . . . . . . . . Corruption Blocked . | . . . . . . . . . . . . . . . . . . . . . . . . . . Effects 82 | . . 1 . . . . 2 2 14 17 15 . . . 9 . . 9 4 . 6 3 . . . Message Errors 22 | . . . . . . . 1 1 4 6 1 . . . 2 . . 3 2 . 1 1 . . . Matter Fused 17 | . . . . . . . . . 5 3 3 . . . 1 . . 1 . . 2 2 . . . Heat Flow Errors 7 | . . . . . . . . . . 1 3 . . . 1 . . 1 . . 1 . . . . Energy Discharges 11 | . . . . . . . . . 4 2 2 . . . 1 . . 1 1 . . . . . . Parts Rejected 1 | . . . . . . . . 1 . . . . . . . . . . . . . . . . . Data Loss (minor) 13 | . . 1 . . . . 1 . 1 3 4 . . . 2 . . . . . 1 . . . . Data Loss (major) 2 | . . . . . . . . . . 1 1 . . . . . . . . . . . . . . Misfires 5 | . . . . . . . . . . . 1 . . . 1 . . 3 . . . . . . . Weapon Failures 4 | . . . . . . . . . . 1 . . . . 1 . . . 1 . 1 . . . . Overload Shots 19 | . . . . . . . . . . . . . 9 . 10 . . . . . . . . . . Overflow Damage 274 | . . . . 7 . . . 53 58 . . . . . . 122 34 . . . . . . . . Projectiles . | . . . . . . . . . . . . . . . . . . . . . . . . . . Explosions 274 | . . . . 7 . . . 53 58 . . . . . . 122 34 . . . . . . . . Melee . | . . . . . . . . . . . . . . . . . . . . . . . . . . Knockbacks 2 | . . . . . 1 . . . . . . . . . . . . . . . 1 . . . . Impact 2 | . . . . . 1 . . . . . . . . . . . . . . . 1 . . . . Kinetic . | . . . . . . . . . . . . . . . . . . . . . . . . . . Secondary . | . . . . . . . . . . . . . . . . . . . . . . . . . . Self-Inflicted Damage 1174 | . . . . 23 37 . . 531 164 26 . . . . . 247 . . . . 61 83 2 . . Shots 34 | . . . . 2 2 . . 20 3 . . . . . . 3 . . . . 1 3 . . . Rammed 27 | . 1 . 5 1 . . 1 1 7 . . . . . . . . . . 1 7 . 3 . . Targets Rammed 33 | . 1 . 6 2 1 . 1 1 8 . . . 1 . . . 1 . . 1 7 . 3 . . Kicked 2 | . . . . . . . . . . . . . 1 . . . 1 . . . . . . . . Crushed 4 | . . . 1 1 1 . . . 1 . . . . . . . . . . . . . . . . Highest Temperature 523 | . 119 183 410 510 416 299 167 . 523 97 236 . 90 95 224 29 177 97 6 . 126 238 . . . Average Temperature 102 | . 52 63 132 156 115 89 55 . 140 25 39 . 26 25 66 13 91 49 4 . 83 118 . . . Received Heat Transfer 3528 | . 144 36 153 261 153 45 186 . 558 225 81 . 522 269 243 168 235 . 27 138 39 18 9 9 9 Effects 16 | . . . 1 7 1 . . . 7 . . . . . . . . . . . . . . . . Shutdowns 6 | . . . 1 2 1 . . . 2 . . . . . . . . . . . . . . . . Interference 5 | . . . . 1 . . . . 4 . . . . . . . . . . . . . . . . Matter Decay 1 | . . . . . . . . . 1 . . . . . . . . . . . . . . . . Short Circuit 1 | . . . . 1 . . . . . . . . . . . . . . . . . . . . . Damage (minor) 3 | . . . . 3 . . . . . . . . . . . . . . . . . . . . . Siege Activations . | . . . . . . . . . . . . . . . . . . . . . . . . . . Martial Activations . | . . . . . . . . . . . . . . . . . . . . . . . . . . Shielding Activations . | . . . . . . . . . . . . . . . . . . . . . . . . . . Robots Disrupted . | . . . . . . . . . . . . . . . . . . . . . . . . . . Combat Hostiles . | . . . . . . . . . . . . . . . . . . . . . . . . . . Robots Corrupted 2 | . . 1 . 1 . . . . . . . . . . . . . . . . . . . . . Combat Hostiles 2 | . . 1 . 1 . . . . . . . . . . . . . . . . . . . . . Parts Fried 8 | . . 4 . 1 2 . . . . . . . . 1 . . . . . . . . . . . Impact Corruptions . | . . . . . . . . . . . . . . . . . . . . . . . . . . Robots Melted 9 | . . . 1 . . 1 2 . 3 . . . . . 2 . . . . . . . . . . Combat Hostiles 9 | . . . 1 . . 1 2 . 3 . . . . . 2 . . . . . . . . . . Parts Melted 100 | . 2 . 5 4 13 11 9 . 26 . 1 . 9 11 7 2 . . . . . . . . . Heat Transferred 26389 | . 444 148 1160 2251 1998 1454 2073 . 5948 348 1012 . 3081 2430 3283 759 . . . . . . . . . Parts Sabotaged . | . . . . . . . . . . . . . . . . . . . . . . . . . . Parts Stolen . | . . . . . . . . . . . . . . . . . . . . . . . . . . Parts Stripped . | . . . . . . . . . . . . . . . . . . . . . . . . . . Power Chain Reactions 3 | . . . 1 1 . . . . . . . . . 1 . . . . . . . . . . . Alert | -11 -10 -9 -8 -8 -8 -8 -7 -7 -7 -7 -7 -6 -6 -5 -5 -4 -4 -4 -4 -3 -3 -2 -1 -1 -1 ------- Run | Yrd Mat Mat Mat Gar Mat Gar Fac Was Fac Gar Fac Fac Gar Fac Gar Fac Ext Cet Arc Res Qua Res Acc Gar Acc Maximum Alert Level 3 | . . . . 3 2 2 1 . 1 2 2 . 2 1 3 1 2 1 . 3 2 2 1 . . Low Security (%) 40 | 100 100 100 100 17 . . 85 100 69 . . 100 20 . . . 61 65 100 52 . . 75 100 100 Level 1 28 | . . . . 8 41 43 14 . 30 30 80 . 41 100 17 100 37 34 . 8 . 96 24 . . Level 2 27 | . . . . 52 58 56 . . . 69 19 . 38 . 66 . 1 . . 18 100 3 . . . Level 3 3 | . . . . 20 . . . . . . . . . . 15 . . . . 20 . . . . . Level 4 . | . . . . . . . . . . . . . . . . . . . . . . . . . . Level 5 . | . . . . . . . . . . . . . . . . . . . . . . . . . . High Security . | . . . . . . . . . . . . . . . . . . . . . . . . . . Max Security . | . . . . . . . . . . . . . . . . . . . . . . . . . . Peak Influence 948 | 10 41 85 183 772 502 505 264 32 323 627 434 152 603 389 720 395 406 256 197 948 631 402 225 140 77 Initial 528 | . . 16 18 74 376 306 264 10 . 213 329 152 64 316 258 378 183 182 41 54 528 292 225 140 77 Average 293 | 1 9 38 95 517 419 399 107 10 140 470 356 121 322 327 541 286 228 182 146 322 552 343 173 134 60 Influence Increases 8978 | 50 91 208 357 738 523 259 153 77 711 494 333 . 629 333 582 347 569 141 196 1240 617 165 90 . 75 Destroy 0b10 Robot/C 4540 | . 60 100 240 360 280 140 100 . 460 360 160 . 360 240 340 140 380 80 80 380 260 20 . . . Destroy 0b10 Robot/NC 390 | 50 . 20 10 . 30 . 5 . 30 . 55 . . . . 5 40 5 . 90 50 . . . . Destroy Leader 796 | . 30 44 64 20 106 20 32 . 110 30 66 . 20 40 40 32 22 . . 92 18 10 . . . Allied During Kill 829 | . . . . . . 7 . . . 3 6 . . . 16 . 83 27 80 527 80 . . . . Successful Hack 146 | . . 14 7 . 15 21 14 . 19 16 . . 14 . 14 . . . . 12 . . . . . Disable Machine 480 | . . 15 30 15 60 . . . 60 . . . . 15 . 90 . 15 30 45 105 . . . . Anti-Garrison Action 600 | . . . . 200 . 50 . . . 50 . . 150 . 150 . . . . . . . . . . Destroy Structure 702 | . 1 . 6 68 17 21 2 77 32 5 1 . 10 8 22 80 44 14 6 94 104 90 . . . Partial Spotted 30 | . . . . . . . . . . . . . . . . . . . . . . . . . 30 Lose Combat Pursuer 465 | . . 15 . 75 15 . . . . 30 45 . 75 30 . . . . . . . 45 90 . 45 Influence Decreases 8926 | 50 50 204 287 81 824 225 628 107 406 172 648 220 118 567 231 692 618 364 152 447 1036 309 292 45 153 Entered New Map 3605 | . . 25 27 41 396 165 241 20 . 92 298 160 28 287 111 342 192 144 62 93 412 229 152 35 53 Time Decay 4063 | 50 50 179 250 . 428 . 387 59 376 . 350 60 . 190 . 150 326 190 70 304 374 80 120 . 70 Lost Part 838 | . . . 10 40 . 20 . 28 30 60 . . 70 90 120 80 20 10 . . 200 . 20 10 30 Lost Ally 420 | . . . . . . 40 . . . 20 . . 20 . . 120 80 20 20 50 50 . . . . Squads Dispatched 41 | . 3 2 1 . 3 . 3 . 4 . 3 . . 5 . 1 1 . . 6 4 1 2 . 2 Investigation 7 | . 2 . . . 1 . . . . . 1 . . 2 . . . . . 1 . . . . . Extermination 9 | . . . . . . . 1 . 3 . 1 . . . . . . . . 2 2 . . . . Reinforcement 19 | . 1 2 1 . . . 2 . 1 . 1 . . 2 . 1 1 . . . 2 1 2 . 2 Assault . | . . . . . . . . . . . . . . . . . . . . . . . . . . Garrison 6 | . . . . . 2 . . . . . . . . 1 . . . . . 3 . . . . . Intercept . | . . . . . . . . . . . . . . . . . . . . . . . . . . Searches Triggered . | . . . . . . . . . . . . . . . . . . . . . . . . . . Construction Impeded 1 | . . . . . . . . . . . . . . . . . 1 . . . . . . . . Haulers Reinforced 2 | . . . . . . . 1 . . . 1 . . . . . . . . . . . . . . Active Scanning Responses . | . . . . . . . . . . . . . . . . . . . . . . . . . . Cargo Convoy Interrupts 1 | . . . . . . . 1 . . . . . . . . . . . . . . . . . . Stealth | -11 -10 -9 -8 -8 -8 -8 -7 -7 -7 -7 -7 -6 -6 -5 -5 -4 -4 -4 -4 -3 -3 -2 -1 -1 -1 --------- Run | Yrd Mat Mat Mat Gar Mat Gar Fac Was Fac Gar Fac Fac Gar Fac Gar Fac Ext Cet Arc Res Qua Res Acc Gar Acc Distress Signals 16 | . . . 1 . . . 1 . . . 2 . . . . 3 3 1 . 3 . 1 1 . . Communications Jammed 72 | . . . . . . . . . . . . . . . . . . . 1 70 1 . . . . Distress Signals 63 | . . . . . . . . . . . . . . . . . . . 1 61 1 . . . . Times Spotted 403 | . 7 13 15 21 23 7 27 8 25 27 12 . 24 19 19 18 19 4 3 22 30 6 23 15 16 Peak Tracking Total 21 | . 2 3 4 4 4 3 15 3 4 8 5 . 8 6 3 6 5 5 2 6 6 5 21 15 12 Tactical Retreats 21 | . . 1 . 4 1 . . . . 2 2 . 2 1 . 1 . . . . . 3 2 . 2 Traps | -11 -10 -9 -8 -8 -8 -8 -7 -7 -7 -7 -7 -6 -6 -5 -5 -4 -4 -4 -4 -3 -3 -2 -1 -1 -1 ------- Run | Yrd Mat Mat Mat Gar Mat Gar Fac Was Fac Gar Fac Fac Gar Fac Gar Fac Ext Cet Arc Res Qua Res Acc Gar Acc Traps Triggered 18 | . 1 . 1 1 1 . 1 . 1 1 . . 2 1 2 . 1 . . . 3 . . 1 1 Indirectly . | . . . . . . . . . . . . . . . . . . . . . . . . . . Trap Hack Attempts . | . . . . . . . . . . . . . . . . . . . . . . . . . . Triggered . | . . . . . . . . . . . . . . . . . . . . . . . . . . Disarmed . | . . . . . . . . . . . . . . . . . . . . . . . . . . Reprogrammed . | . . . . . . . . . . . . . . . . . . . . . . . . . . Reused . | . . . . . . . . . . . . . . . . . . . . . . . . . . Traps Extracted . | . . . . . . . . . . . . . . . . . . . . . . . . . . Installed . | . . . . . . . . . . . . . . . . . . . . . . . . . . Triggered . | . . . . . . . . . . . . . . . . . . . . . . . . . . Machines | -11 -10 -9 -8 -8 -8 -8 -7 -7 -7 -7 -7 -6 -6 -5 -5 -4 -4 -4 -4 -3 -3 -2 -1 -1 -1 ---------- Run | Yrd Mat Mat Mat Gar Mat Gar Fac Was Fac Gar Fac Fac Gar Fac Gar Fac Ext Cet Arc Res Qua Res Acc Gar Acc Machines Disabled 41 | . . 1 2 5 4 1 . . 4 1 . . . 1 2 6 1 1 2 3 7 . . . . Max in Single Turn 4 | . . 1 1 1 1 1 . . 4 1 . . . 1 1 4 . 1 1 . 2 . . . . Garrison Relay 6 | . . . . 2 . 1 . . . 1 . . . . 2 . . . . . . . . . . Phase Generator 1 | . . . . 1 . . . . . . . . . . . . . . . . . . . . . Energy Cycler 1 | . . . . . . . . . . . . . . . . . 1 . . . . . . . . Machines Repaired . | . . . . . . . . . . . . . . . . . . . . . . . . . . Machines Dismantled 1 | . . . . . . . . . . . . . . . . . . 1 . . . . . . . Machines Sabotaged . | . . . . . . . . . . . . . . . . . . . . . . . . . . Overloaded Fab Kills . | . . . . . . . . . . . . . . . . . . . . . . . . . . Hacking | -11 -10 -9 -8 -8 -8 -8 -7 -7 -7 -7 -7 -6 -6 -5 -5 -4 -4 -4 -4 -3 -3 -2 -1 -1 -1 --------- Run | Yrd Mat Mat Mat Gar Mat Gar Fac Was Fac Gar Fac Fac Gar Fac Gar Fac Ext Cet Arc Res Qua Res Acc Gar Acc Machines Accessed 38 | . 2 1 2 2 5 2 3 . 4 1 1 1 2 2 3 . 2 . . 3 . . 1 1 . Terminals 26 | . 2 1 1 2 3 2 2 . 2 1 . . 2 . 3 . 2 . . 2 . . . 1 . Fabricators 2 | . . . . . . . 1 . 1 . . . . . . . . . . . . . . . . Repair Stations 2 | . . . . . . . . . . . 1 . . 1 . . . . . . . . . . . Recycling Units . | . . . . . . . . . . . . . . . . . . . . . . . . . . Scanalyzers 2 | . . . . . 1 . . . . . . . . . . . . . . 1 . . . . . Garrison Access 6 | . . . 1 . 1 . . . 1 . . 1 . 1 . . . . . . . . 1 . . Total Hacks 75 | . 4 2 4 4 12 5 3 . 11 1 1 1 3 3 8 . 3 . . 7 . . 1 2 . Successful 39 | . . 2 3 1 9 2 2 . 6 1 1 1 1 2 1 . 2 . . 4 . . 1 . . Failed 35 | . 4 . 1 3 2 3 1 . 5 . . . 2 1 7 . 1 . . 3 . . . 2 . Catastrophic 9 | . 2 . . 1 . . 1 . . . . . 1 . 3 . . . . 1 . . . . . Database Lockouts 1 | . . . . . 1 . . . . . . . . . . . . . . . . . . . . Manual 15 | . 4 2 2 . 2 . . . . . 1 . . 3 . . . 1 . . . . . . . Terminals 52 | . 4 2 3 4 5 5 2 . 7 1 . . 3 . 8 . 3 . . 3 . . . 2 . Fabricators 4 | . . . . . . . 1 . 3 . . . . . . . . . . . . . . . . Repair Stations 3 | . . . . . . . . . . . 1 . . 2 . . . . . . . . . . . Recycling Units . | . . . . . . . . . . . . . . . . . . . . . . . . . . Scanalyzers 10 | . . . . . 6 . . . . . . . . . . . . . . 4 . . . . . Garrison Access 6 | . . . 1 . 1 . . . 1 . . 1 . 1 . . . . . . . . 1 . . Terminal Hacks 23 | . . 2 2 1 4 2 2 . 4 1 . . 1 . 1 . 2 . . 1 . . . . . Part Schematic 1 | . . 1 . . . . . . . . . . . . . . . . . . . . . . . Robot Schematic 1 | . . 1 . . . . . . . . . . . . . . . . . . . . . . . Robot Analysis 3 | . . . 2 . 1 . . . . . . . . . . . . . . . . . . . . Prototype ID Bank 2 | . . . . . 1 . 1 . . . . . . . . . . . . . . . . . . Open Door 3 | . . . . . . 1 . . . . . . . . . . 2 . . . . . . . . Branch Access Points 1 | . . . . . . . . . . . . . . . . . . . . 1 . . . . . Emergency Access Points 4 | . . . . 1 . . . . 1 . . . 1 . 1 . . . . . . . . . . Locate Traps 2 | . . . . . 1 . 1 . . . . . . . . . . . . . . . . . . Dispatch Records 1 | . . . . . . . . . 1 . . . . . . . . . . . . . . . . Security Status 1 | . . . . . . . . . 1 . . . . . . . . . . . . . . . . Transport Status 1 | . . . . . . . . . 1 . . . . . . . . . . . . . . . . Zone Layout 1 | . . . . . 1 . . . . . . . . . . . . . . . . . . . . Garrison Registry 1 | . . . . . . 1 . . . . . . . . . . . . . . . . . . . Security Stations 1 | . . . . . . . . . . 1 . . . . . . . . . . . . . . . Fabricator Hacks 1 | . . . . . . . . . 1 . . . . . . . . . . . . . . . . Load Schematic 1 | . . . . . . . . . 1 . . . . . . . . . . . . . . . . Repair Station Hacks . | . . . . . . . . . . . . . . . . . . . . . . . . . . Recycling Unit Hacks . | . . . . . . . . . . . . . . . . . . . . . . . . . . Scanalyzer 7 | . . . . . 4 . . . . . . . . . . . . . . 3 . . . . . Insert Component 2 | . . . . . 1 . . . . . . . . . . . . . . 1 . . . . . Analyze 3 | . . . . . 1 . . . . . . . . . . . . . . 2 . . . . . Retrieve Study 2 | . . . . . 2 . . . . . . . . . . . . . . . . . . . . Garrison Access Hacks 6 | . . . 1 . 1 . . . 1 . . 1 . 1 . . . . . . . . 1 . . Unlock Access 6 | . . . 1 . 1 . . . 1 . . 1 . 1 . . . . . . . . 1 . . Unauthorized Hacks 2 | . . . . . . . . . . . 1 . . 1 . . . . . . . . . . . Terminals . | . . . . . . . . . . . . . . . . . . . . . . . . . . Fabricators . | . . . . . . . . . . . . . . . . . . . . . . . . . . Repair Stations 2 | . . . . . . . . . . . 1 . . 1 . . . . . . . . . . . Patch 2 | . . . . . . . . . . . 1 . . 1 . . . . . . . . . . . Recycling Units . | . . . . . . . . . . . . . . . . . . . . . . . . . . Scanalyzers . | . . . . . . . . . . . . . . . . . . . . . . . . . . Garrison Access . | . . . . . . . . . . . . . . . . . . . . . . . . . . Data Cores Recovered . | . . . . . . . . . . . . . . . . . . . . . . . . . . Used . | . . . . . . . . . . . . . . . . . . . . . . . . . . Hacking Detections 24 | . 2 1 1 1 2 2 1 . 3 1 . . 1 . 3 . 1 . . 3 . . 1 1 . Full Trace Events 5 | . 1 . . 1 . . . . . . . . 1 . 1 . . . . 1 . . . . . Feedback Events 1 | . . . . . . . . . . . . . . . 1 . . . . . . . . . . Corruption 1 | . . . . . . . . . . . . . . . 1 . . . . . . . . . . Feedback Blocked . | . . . . . . . . . . . . . . . . . . . . . . . . . . Robot Schematics Acquired 1 | . . 1 . . . . . . . . . . . . . . . . . . . . . . . Robots Built . | . . . . . . . . . . . . . . . . . . . . . . . . . . Authchips . | . . . . . . . . . . . . . . . . . . . . . . . . . . Time . | . . . . . . . . . . . . . . . . . . . . . . . . . . Total Robot Build Rating . | . . . . . . . . . . . . . . . . . . . . . . . . . . Part Schematics Acquired 5 | . . 1 . . 1 . . . . . . . . . . . . . . . 3 . . . . Parts Built . | . . . . . . . . . . . . . . . . . . . . . . . . . . Authchips . | . . . . . . . . . . . . . . . . . . . . . . . . . . Time . | . . . . . . . . . . . . . . . . . . . . . . . . . . Total Part Build Rating . | . . . . . . . . . . . . . . . . . . . . . . . . . . Part Studies Acquired 2 | . . . . . 2 . . . . . . . . . . . . . . . . . . . . Parts Repaired . | . . . . . . . . . . . . . . . . . . . . . . . . . . Time . | . . . . . . . . . . . . . . . . . . . . . . . . . . Parts Recycled . | . . . . . . . . . . . . . . . . . . . . . . . . . . Recycled Matter . | . . . . . . . . . . . . . . . . . . . . . . . . . . Retrieved Matter . | . . . . . . . . . . . . . . . . . . . . . . . . . . Retrieved Components . | . . . . . . . . . . . . . . . . . . . . . . . . . . Parts Scanalyzed 2 | . . . . . 1 . . . . . . . . . . . . . . 1 . . . . . Part Schematics Acquired 1 | . . . . . 1 . . . . . . . . . . . . . . . . . . . . Parts Damaged . | . . . . . . . . . . . . . . . . . . . . . . . . . . Bothacking | -11 -10 -9 -8 -8 -8 -8 -7 -7 -7 -7 -7 -6 -6 -5 -5 -4 -4 -4 -4 -3 -3 -2 -1 -1 -1 ------------ Run | Yrd Mat Mat Mat Gar Mat Gar Fac Was Fac Gar Fac Fac Gar Fac Gar Fac Ext Cet Arc Res Qua Res Acc Gar Acc Used RIF Installer 4 | . . . . 1 . 1 . . . . . . 1 . 1 . . . . . . . . . . Hotswap 1 | . . . . . . . . . . . . . 1 . . . . . . . . . . . . Robot Detection 1 | . . . . . . 1 . . . . . . . . . . . . . . . . . . . Program Shield 1 | . . . . . . . . . . . . . . . 1 . . . . . . . . . . Robots Hacked 14 | . . . . . . 2 . . . 1 3 . 1 . 4 . . . 3 . . . . . . Non-combat 4 | . . . . . . . . . . . 1 . . . . . . . 3 . . . . . . Combat 10 | . . . . . . 2 . . . 1 2 . 1 . 4 . . . . . . . . . . Robot Hacks Applied 14 | . . . . . . 2 . . . 1 3 . 1 . 4 . . . 3 . . . . . . ignore_parts 1 | . . . . . . . . . . . 1 . . . . . . . . . . . . . . amplify_resonance 2 | . . . . . . . . . . . 1 . 1 . . . . . . . . . . . . overwrite_iff 2 | . . . . . . 1 . . . . . . . . 1 . . . . . . . . . . formatsys_low 3 | . . . . . . . . . . . . . . . . . . . 3 . . . . . . formatsys_high 6 | . . . . . . 1 . . . 1 1 . . . 3 . . . . . . . . . . Relay Couplers Released 26 | . . . . 8 . 3 . . . 8 . . . . 7 . . . . . . . . . . Machine Destruction 22 | . . . . 8 . 3 . . . 4 . . . . 7 . . . . . . . . . . Programmers 4 | . . . . . . . . . . 4 . . . . . . . . . . . . . . . Attached 5 | . . . . . . 1 . . . 1 1 . . . 1 . . . 1 . . . . . . Fabnet Peak Effective % . | . . . . . . . . . . . . . . . . . . . . . . . . . . Robots Rewired 9 | . . . . . . 2 . . . . . . . . 4 . 3 . . . . . . . . Allies Hacked 2 | . . . . . . 1 . . . . . . . . . . 1 . . . . . . . . Hacks Repelled . | . . . . . . . . . . . . . . . . . . . . . . . . . . Allies | -11 -10 -9 -8 -8 -8 -8 -7 -7 -7 -7 -7 -6 -6 -5 -5 -4 -4 -4 -4 -3 -3 -2 -1 -1 -1 -------- Run | Yrd Mat Mat Mat Gar Mat Gar Fac Was Fac Gar Fac Fac Gar Fac Gar Fac Ext Cet Arc Res Qua Res Acc Gar Acc Total Allies 29 | . . . . . . 4 . . . 1 1 . . . 8 . 7 5 3 . . . . . . Largest Group 8 | . . . . . . 3 . . . 1 1 1 1 . 7 7 5 7 8 8 5 . . . . Highest-Rated Group 656 | . . . . . . 61 . . . 32 16 16 16 . 143 143 302 656 656 615 374 . . . . Highest-Rated Ally 159 | . . . . . . 25 . . . 32 16 16 16 . 29 29 159 152 136 96 96 . . . . Total Orders . | . . . . . . . . . . . . . . . . . . . . . . . . . . Ally Attacks 288 | . . . . . . 10 . . . 3 5 . . . 6 30 35 29 26 116 28 . . . . Total Damage 8999 | . . . . . . 165 . . . 80 58 . . . 74 400 1300 591 912 4148 1271 . . . . Kills 46 | . . . . . . 1 . . . 1 . . . . . 7 9 2 2 18 6 . . . . Allies Corrupted 3 | . . . . . . 1 . . . . . . . . . 1 1 . . . . . . . . Allies Melted 1 | . . . . . . . . . . . . . . . . . 1 . . . . . . . . Intel | -11 -10 -9 -8 -8 -8 -8 -7 -7 -7 -7 -7 -6 -6 -5 -5 -4 -4 -4 -4 -3 -3 -2 -1 -1 -1 ------- Run | Yrd Mat Mat Mat Gar Mat Gar Fac Was Fac Gar Fac Fac Gar Fac Gar Fac Ext Cet Arc Res Qua Res Acc Gar Acc Active Infowar (turns) 5809 | 48 235 468 674 916 1057 64 . . . . . . . . . . 18 392 141 737 824 4 231 . . A.S.S. 2 | . . . . . . . . . . . . . . . . . . . . 2 . . . . . Terrain 235 | . . . . . . . . . . . . . . . . . . . . . . 4 231 . . Seismic 3462 | 48 235 468 674 916 1057 64 . . . . . . . . . . . . . . . . . . . Jamming 2112 | . . . . . . . . . . . . . . . . . 18 392 141 737 824 . . . . Robot Analysis Total 3 | . . . 2 . 1 . . . . . . . . . . . . . . . . . . . . Derelict Logs Recovered . | . . . . . . . . . . . . . . . . . . . . . . . . . . Drone Launches . | . . . . . . . . . . . . . . . . . . . . . . . . . . Drone Recoveries . | . . . . . . . . . . . . . . . . . . . . . . . . . . Exploration | -11 -10 -9 -8 -8 -8 -8 -7 -7 -7 -7 -7 -6 -6 -5 -5 -4 -4 -4 -4 -3 -3 -2 -1 -1 -1 ------------- Run | Yrd Mat Mat Mat Gar Mat Gar Fac Was Fac Gar Fac Fac Gar Fac Gar Fac Ext Cet Arc Res Qua Res Acc Gar Acc Turns Passed 14929 | 434 235 468 674 926 1057 648 998 222 1634 807 799 139 648 395 1042 307 734 392 141 737 875 178 243 38 158 Spaces Moved 8412 | 215 103 205 343 436 536 323 537 131 779 492 526 106 296 221 515 196 436 131 60 357 455 327 240 85 361 Core 443 | 10 . . . . . . . 41 8 . . . . . . . . 1 . . 50 170 . 47 116 Treads 4423 | 188 103 205 343 436 536 323 537 90 738 . . . . . . . . 98 60 357 405 4 . . . Legs 2870 | 17 . . . . . . . . 33 492 526 106 296 221 515 196 436 32 . . . . . . . Wheels . | . . . . . . . . . . . . . . . . . . . . . . . . . . Hover . | . . . . . . . . . . . . . . . . . . . . . . . . . . Flight 676 | . . . . . . . . . . . . . . . . . . . . . . 153 240 38 245 Fastest Speed 37 | 50 160 160 160 163 158 158 163 50 50 127 127 127 122 122 108 108 112 115 160 160 50 40 37 40 37 Average Speed 136 | 151 160 181 163 164 163 158 166 130 159 129 127 127 131 122 127 110 125 164 160 160 149 46 94 45 42 Slowest Speed 1400 | 160 160 240 243 245 246 161 167 167 200 130 127 127 200 123 190 186 187 1400 160 160 350 135 117 50 50 Overloaded Moves . | . . . . . . . . . . . . . . . . . . . . . . . . . . Propulsion Burnouts . | . . . . . . . . . . . . . . . . . . . . . . . . . . Robots Hopped 9 | . . . . . . . . . . . . . . . . . . . . . . 1 4 . 4 Potential Cave-ins . | . . . . . . . . . . . . . . . . . . . . . . . . . . Cave-ins Triggered . | . . . . . . . . . . . . . . . . . . . . . . . . . . Teleports 3 | . . . . . . . . . . . . . . . . . . . . . 3 . . . . Exploration Rate (%) 33 | 10 26 23 40 67 58 25 13 62 26 47 21 4 34 9 52 8 70 64 76 15 51 12 10 30 13 Regions Visited 25 Branch Regions 4 Pre-discovered Areas . | . . . . . . . . . . . . . . . . . . . . . . . . . . Known Exits Taken 7 | . . . 1 . 1 . . . 1 . . 1 . 1 . . . . . 1 . . 1 . . Unknown Exits Taken 10 | 1 1 1 . . . . . . . . 1 . . . . 1 1 1 1 . 1 1 . . . Scrap Searched . | . . . . . . . . . . . . . . . . . . . . . . . . . . Spaces Dug 7 | . . . . . 5 . 2 . . . . . . . . . . . . . . . . . . Terrain Destroyed 561 | . . . 6 83 16 27 2 222 29 . . . . 4 1 41 30 8 3 5 41 43 . . . Melee 2 | . . . . . . . 2 . . . . . . . . . . . . . . . . . . Projectile 57 | . . . . . . . . . . . . . . . 1 8 17 8 3 4 16 . . . . AOE 500 | . . . 6 83 16 27 . 222 29 . . . . 4 . 33 13 . . . 24 43 . . . Terrain Rammed 2 | . . . . . . . . . . 2 . . . . . . . . . . . . . . . Walls Destroyed 1 | . . . . . . . . . . 1 . . . . . . . . . . . . . . . Machines Disabled . | . . . . . . . . . . . . . . . . . . . . . . . . . . Actions | -11 -10 -9 -8 -8 -8 -8 -7 -7 -7 -7 -7 -6 -6 -5 -5 -4 -4 -4 -4 -3 -3 -2 -1 -1 -1 --------- Run | Yrd Mat Mat Mat Gar Mat Gar Fac Was Fac Gar Fac Fac Gar Fac Gar Fac Ext Cet Arc Res Qua Res Acc Gar Acc Total 10517 | 261 129 259 409 550 638 397 605 151 1022 588 603 110 474 290 797 243 551 278 94 465 563 345 252 83 360 Wait 702 | . 2 18 8 44 28 22 15 . 116 13 14 . 100 24 111 2 13 110 12 44 . 1 5 . . Move 8366 | 214 102 204 342 434 535 321 537 130 778 490 525 105 294 220 513 195 435 130 59 356 454 324 233 83 353 Hop 8 | . . . . . . . . . . . . . . . . . . . . . . 1 3 . 4 Pick Up 129 | 6 1 6 12 2 12 3 10 . 11 5 6 . 6 4 13 6 2 2 5 5 10 . 1 . 1 Fast Attach 116 | 7 . 4 1 1 . . 1 3 17 10 4 . 6 2 14 7 5 6 . 6 9 9 2 . 2 Attach 65 | . . 1 3 5 . 3 1 . 5 3 1 2 6 4 10 6 . 1 1 1 10 1 1 . . Detach 10 | . . . 1 1 . . . . . 1 . 1 . . 2 1 . . . 1 . 1 1 . . Swap 139 | 2 1 2 10 9 11 10 9 2 6 7 17 2 6 7 14 . 9 3 3 7 2 . . . . Drop 166 | . . 5 5 5 10 2 11 1 13 12 11 . 8 3 15 7 7 8 5 10 20 4 4 . . Fire 649 | 32 22 19 21 46 41 26 18 13 68 43 25 . 37 26 54 19 32 10 8 34 51 4 . . . Melee 6 | . . . . . . 3 2 1 . . . . . . . . . . . . . . . . . Ram 8 | . . . . . . . . . . 2 . . . . . . . . . . 4 . 2 . . Kick 2 | . . . . . . . . . . . . . 1 . . . 1 . . . . . . . . Crush 24 | . 1 . 6 2 1 . 1 1 8 . . . . . . . . . . 1 3 . . . . Escape Stasis 22 | . . . . . . . . . . 1 . . 10 . 6 . 5 . . . . . . . . Rewire 97 | . . . . 1 . 7 . . . 1 . . . . 45 . 42 . 1 . . . . . . Trap . | . . . . . . . . . . . . . . . . . . . . . . . . . . Miscellaneous 8 | . . . . . . . . . . . . . . . . . . 8 . . . . . . . Route ------- -11/Scrapyard -10/Materials -9/Materials -8/Materials (discovered 2 exits: *Fac / Gar) -8/Garrison -8/Materials (discovered 2 exits: *Fac / Gar) -8/Garrison (discovered 3 exits: *Fac x3) -7/Factory -7/Waste -7/Factory (discovered 3 exits: *Fac / [*Sto] / Gar) -7/Garrison (discovered 2 exits: *Fac x2) -7/Factory -6/Factory -6/Garrison -5/Factory -5/Garrison (discovered 2 exits: [*Fac x2]) -4/Factory -4/Extension (discovered 3 exits: *Res x2 / *Cet) -4/Cetus -4/Archives -3/Research (discovered 3 exits: Arm / *Qua x2) -3/Quarantine -2/Research (discovered 2 exits: *Acc / [*Tes]) -1/Access -1/Garrison -1/Access History --------- Turn | Location | Event 20 | -11/Scrapyard | Discovered new exit (range 15) 435 | -11/Scrapyard | Entered Materials 436 | -10/Materials | Build established: Mutant 614 | -10/Materials | Discovered new exit (range 13) 670 | -10/Materials | Entered another Materials area 670 | -9/Materials | Evolved 2 slots: Utility x1, Weapon x1 978 | -9/Materials | Build established: Gunner 1026 | -9/Materials | Discovered new exit (range 14) 1138 | -9/Materials | Entered another Materials area 1138 | -8/Materials | Evolved 2 slots: Propulsion x1, Utility x1 1525 | -8/Materials | Discovered new exit (range 15) 1732 | -8/Materials | Build established: Tank 1811 | -8/Materials | Identified exit to Garrison 1812 | -8/Materials | Entered Garrison 1864 | -8/Garrison | Triggered checkpoint 2010 | -8/Garrison | Garrison Relay disabled 2148 | -8/Garrison | Phase Generator disabled 2262 | -8/Garrison | Triggered checkpoint 2358 | -8/Garrison | Triggered checkpoint 2436 | -8/Garrison | Triggered checkpoint 2508 | -8/Garrison | Triggered checkpoint 2544 | -8/Garrison | Garrison Relay disabled 2654 | -8/Garrison | Installed Relay Interface Framework 2712 | -8/Garrison | Triggered checkpoint 2722 | -8/Garrison | Discovered new exit (range 10) 2738 | -8/Garrison | Entered Materials 3264 | -8/Materials | Central database locked down 3366 | -8/Materials | Discovered new exit (range 15) 3794 | -8/Materials | Identified exit to Garrison 3795 | -8/Materials | Entered Garrison 3829 | -8/Garrison | Triggered checkpoint 3897 | -8/Garrison | Discovered new exit (range 36) 3897 | -8/Garrison | Discovered new exit (range 74) 3897 | -8/Garrison | Discovered new exit (range 59) 4008 | -8/Garrison | Expanded RIF knowledge: Robot Detection 4196 | -8/Garrison | Garrison Relay disabled 4443 | -8/Garrison | Entered Factory 4443 | -7/Factory | Evolved 2 slots: Propulsion x1, Utility x1 4716 | -7/Factory | Found Prototype Launcher 4716 | -7/Factory | Identified Rocket Array 5431 | -7/Factory | Cargo convoy interrupted 5441 | -7/Factory | Sucked down chute 5441 | -7/Factory | Entered Waste 5485 | -7/Waste | Spotted C-40 Crusher 5492 | -7/Waste | Destroyed C-40 Crusher 5496 | -7/Waste | Spotted C-40 Crusher 5502 | -7/Waste | Spotted C-40 Crusher 5508 | -7/Waste | Destroyed C-40 Crusher 5509 | -7/Waste | Spotted C-40 Crusher 5511 | -7/Waste | Spotted C-40 Crusher 5521 | -7/Waste | Destroyed C-40 Crusher 5530 | -7/Waste | Destroyed C-40 Crusher 5530 | -7/Waste | Destroyed C-40 Crusher 5618 | -7/Waste | Spotted C-40 Crusher 5632 | -7/Waste | Crushed by Compactor (1 part destroyed, 2 dropped) 5635 | -7/Waste | Crushed by Compactor (1 part destroyed, 2 dropped) 5638 | -7/Waste | Crushed by Compactor (1 part destroyed, 1 dropped) 5641 | -7/Waste | Crushed by Compactor (1 part destroyed, 1 dropped) 5655 | -7/Waste | Discovered new exit (range 16) 5663 | -7/Waste | Entered Factory 5672 | -7/Factory | Lost 9 parts (1p2n3u3w) 5947 | -7/Factory | Build established: Mutant 6251 | -7/Factory | Discovered new exit (range 9) 6794 | -7/Factory | Build established: Gunner 6862 | -7/Factory | Core integrity fell below 50% 6989 | -7/Factory | Discovered new exit (range 13) 7296 | -7/Factory | Identified exit to Garrison 7297 | -7/Factory | Entered Garrison 7344 | -7/Garrison | Garrison Relay disabled 7365 | -7/Garrison | Triggered checkpoint 7485 | -7/Garrison | Triggered checkpoint 7495 | -7/Garrison | Lost 3 parts (1u2w) 7496 | -7/Garrison | Triggered checkpoint 7547 | -7/Garrison | Learned Factory security intel 7691 | -7/Garrison | Triggered checkpoint 7823 | -7/Garrison | Discovered new exit (range 9) 7955 | -7/Garrison | Triggered checkpoint 7959 | -7/Garrison | Core integrity fell below 20% 8071 | -7/Garrison | Discovered new exit (range 8) 8085 | -7/Garrison | Triggered checkpoint 8104 | -7/Garrison | Entered Factory 8258 | -7/Factory | Build established: Scavenger-Mutant 8824 | -7/Factory | Build established: Gunner 8883 | -7/Factory | Discovered new exit (range 15) 8903 | -7/Factory | Entered another Factory area 8903 | -6/Factory | Accompanied by 1 ally 8903 | -6/Factory | Evolved 2 slots: Utility x2 9041 | -6/Factory | Identified exit to Garrison 9042 | -6/Factory | Entered Garrison 9042 | -6/Garrison | Accompanied by 1 ally 9125 | -6/Garrison | Assembled breached garrison interior 9229 | -6/Garrison | Lost 3 parts (2n1u) 9410 | -6/Garrison | Lost 3 parts (2n1u) 9542 | -6/Garrison | Expanded RIF knowledge: Hotswap 9623 | -6/Garrison | Discovered new exit (range 8) 9690 | -6/Garrison | Entered Factory 9690 | -5/Factory | Evolved 2 slots: Propulsion x1, Utility x1 9712 | -5/Factory | Build established: Scavenger-Gunner 10003 | -5/Factory | Garrison activated, responded to threat 10048 | -5/Factory | Lost 6 parts (1p2n2u1w) 10071 | -5/Factory | Spotted B-75 Beast 10084 | -5/Factory | Identified exit to Garrison 10085 | -5/Factory | Entered Garrison 10107 | -5/Garrison | Triggered checkpoint 10140 | -5/Garrison | Lost 4 parts (1p1n2w) 10140 | -5/Garrison | Garrison Relay disabled 10183 | -5/Garrison | Spotted B-90 Cyclops 10358 | -5/Garrison | Lost 5 parts (1p3n1u) 10587 | -5/Garrison | Spotted B-75 Beast 10631 | -5/Garrison | Destroyed B-75 Beast 10660 | -5/Garrison | Lost 3 parts (1n1u1w) 10751 | -5/Garrison | Discovered new exit (range 4) 10791 | -5/Garrison | Garrison Relay disabled 10795 | -5/Garrison | Triggered checkpoint 10841 | -5/Garrison | Expanded RIF knowledge: Program Shield 10963 | -5/Garrison | Triggered checkpoint 11085 | -5/Garrison | Discovered new exit (range 10) 11127 | -5/Garrison | Entered Factory 11127 | -4/Factory | Accompanied by 7 allies 11127 | -4/Factory | Evolved 2 slots: Power x1, Propulsion x1 11245 | -4/Factory | Lost 7 allies 11417 | -4/Factory | Discovered new exit (range 15) 11419 | -4/Factory | Lost 5 parts (3n1u1w) 11434 | -4/Factory | Entered Extension 11479 | -4/Extension | Rescued a captive Derelict 11551 | -4/Extension | Rescued A7 11649 | -4/Extension | Energy Cycler disabled 11650 | -4/Extension | Rescued a captive Derelict 11650 | -4/Extension | Rescued a captive Derelict 11650 | -4/Extension | Rescued a captive Derelict 11650 | -4/Extension | Rescued a captive Derelict 11651 | -4/Extension | Rescued a captive Derelict 11652 | -4/Extension | Rescued a captive Derelict 11653 | -4/Extension | Rescued a captive Derelict 11653 | -4/Extension | Rescued a captive Derelict 11654 | -4/Extension | Rescued a captive Derelict 11786 | -4/Extension | Spotted B-86 Titan 11800 | -4/Extension | Destroyed B-86 Titan 11806 | -4/Extension | Spotted B-86 Titan 11829 | -4/Extension | Destroyed B-86 Titan 11855 | -4/Extension | Discovered new exit (range 16) 11865 | -4/Extension | Lost 4 allies 12134 | -4/Extension | Discovered new exit (range 10) 12135 | -4/Extension | Discovered new exit (range 6) 12168 | -4/Extension | Entered Cetus 12168 | -4/Cetus | Accompanied by 3 allies (A7) 12173 | -4/Cetus | Acquired a Cetus Manufacturing Module code from A7 12182 | -4/Cetus | Spotted Cetus Guard 12182 | -4/Cetus | Spotted Cetus Guard 12186 | -4/Cetus | Spotted Cetus Guard 12191 | -4/Cetus | Allies destroyed Cetus Guard 12196 | -4/Cetus | Destroyed Cetus Guard 12206 | -4/Cetus | Spotted Cetus Guard 12208 | -4/Cetus | Allies destroyed Cetus Guard 12216 | -4/Cetus | Destroyed Cetus Guard 12315 | -4/Cetus | System corruption reached 10% 12357 | -4/Cetus | Started Cetus Manufacturing Module 12382 | -4/Cetus | Manufactured an Enhanced Grunt 12385 | -4/Cetus | Escorted A7 to Cetus Mainframe 12407 | -4/Cetus | Manufactured an Enhanced Grunt 12432 | -4/Cetus | Manufactured an Enhanced Grunt 12457 | -4/Cetus | Manufactured an Enhanced Grunt 12482 | -4/Cetus | Manufactured an Enhanced Grunt 12519 | -4/Cetus | Discovered new exit (range 16) 12526 | -4/Cetus | Build established: Scavenger-Tank 12560 | -4/Cetus | Entered Archives 12560 | -4/Archives | Accompanied by 7 allies (A7) 12565 | -4/Archives | Received a hacking code to weaken MAIN.C 12659 | -4/Archives | Discovered new exit (range 16) 12701 | -4/Archives | Entered Research 12701 | -3/Research | Accompanied by 8 allies 12701 | -3/Research | Evolved 2 slots: Utility x2 13079 | -3/Research | Garrison activated, responded to threat 13100 | -3/Research | Found Prototype Device 13100 | -3/Research | Identified Active Sensor Suite 13177 | -3/Research | Identified exit to Armory 13177 | -3/Research | Identified exit to Quarantine 13386 | -3/Research | Build established: Scavenger-Gunner 13438 | -3/Research | Entered Quarantine 13438 | -3/Quarantine | Accompanied by 5 allies 13815 | -3/Quarantine | Found Alien Artifact 13822 | -3/Quarantine | Found Alien Artifact 13827 | -3/Quarantine | Found Alien Artifact 13860 | -3/Quarantine | Found Alien Artifact 13862 | -3/Quarantine | P-80 Master assimilated allied Director 7c 13862 | -3/Quarantine | Identified Subatomic Replicator 13862 | -3/Quarantine | Used Subatomic Replicator to create Alien Artifact 13920 | -3/Quarantine | Found Alien Energy Cannon 13920 | -3/Quarantine | Identified Core Cannon 13994 | -3/Quarantine | Identified Transdimensional Reconstructor 13994 | -3/Quarantine | Warped through subspace 13996 | -3/Quarantine | Identified Supercharged TR 13996 | -3/Quarantine | Warped through subspace 13997 | -3/Quarantine | Identified Hpw. Transdimensional Reconstructor 13997 | -3/Quarantine | Warped through subspace 14006 | -3/Quarantine | Scanned by Researcher 14067 | -3/Quarantine | Lost 8 parts (1p1n4u2w) 14242 | -3/Quarantine | Lost 3 parts (1p1n1u) 14271 | -3/Quarantine | Core integrity fell below 50% 14294 | -3/Quarantine | Found Fusion Bomb Launcher 14307 | -3/Quarantine | Discovered new exit (range 13) 14313 | -3/Quarantine | Entered Research 14313 | -2/Research | Evolved 2 slots: Propulsion x1, Utility x1 14324 | -2/Research | Lost 7 parts (1p3n2u1w) 14489 | -2/Research | Discovered new exit (range 5) 14491 | -2/Research | Discovered new exit (range 10) 14491 | -2/Research | Entered Access 14491 | -1/Access | Evolved 2 slots: Propulsion x1, Utility x1 14567 | -1/Access | Build established: Mutant 14733 | -1/Access | Identified exit to Garrison 14734 | -1/Access | Entered Garrison 14749 | -1/Garrison | Spotted B-99 Colossus 14758 | -1/Garrison | Core integrity fell below 50% 14766 | -1/Garrison | Discovered new exit (range 12) 14772 | -1/Garrison | Entered Access 14781 | -1/Access | Lost 3 parts (2n1u) 14912 | -1/Access | Core integrity fell below 20% 14930 | -1/Access | Destroyed by S-43 Plague with Heavy Machine Gun Last Messages --------------- 14894_ Penetrated by Slug. 14896_ Slug penetrates Wall. 14896_ Penetrated by Slug. 14899_ Impulse Thruster destroyed. 14900_ Triggered Segregator Trap. 14900_ Arcs of energy rise from the floor. 14900_ Graphene Brace blown off. 14904_ Terminal unresponsive. 14911_ TF Node disabled. 14911_ Adv. Sensor Array tumbles out of TF Node. 14911_ Adv. Signal Interpreter tumbles out of TF Node. 14914_ Penetrated by Slug. 14917_ K-01 Serf cleans the Longscan Aggregator. 14920_ H-81 Overseer calls for reinforcements. 14920_ ALERT: Suspicious intruders detected, dispatching Cutter reinforcements to area. 14921_ Exp. Power Shielding destroyed. 14921_ Critical hit (Blast). 14921_ Knocked back. 14926_ U-05 Engineer destroyed. Map ----- +----------------------------------------------------+ | ?????????????????????????????????????????????????? | | ?????????????????????????????????????????????????? | | ?????????????????????????????????????????????????? | | ?????????????????????????????????????????????????? | | ##???????????????????????????????????????????????? | | #???????????????????????????????????????????????? | | #???????????????????????????????????????????????? | | ?????????????????????????????????????????????????? | | ?????????????????????????????????????????????????? | | ?????????????????????????????????????????????????? | | ?????????????????????????????????????????????????? | | ?????????????????????????????????????????????????? | | ?????????????????????????????????????????????????? | | ?????????????????????????????????????????????????? | | ?????????????????????????????????????????????????? | | ?????????????????????????????????????????????????? | | ?????????????????????????????????????????????????? | | ?????????????????????????????????????????????????? | | ???????????????????################??????????????? | | ???????????????????# #??????????????? | | ???????????????????# #??????????????? | | ???????????????????# """"""" ???????????????? | | ???????????????????# """"""" ?????????????????? | | ???????????????????# ???????????????????? | | ???????????????????? ???????????????"?????? | | ???????????????????????#/@##+#????????????""?????? | | ???????????????????????# #???????????? ?????? | | ???????????????????????#### #???????????? ?????? | | ??????????????????????????# s#???????????? ?????? | | ??????????????????????????# #???????????? ?????? | | ??????????????????????????# #????????????+#?????? | | ??????????????????????????# #???????????? #?????? | | ????????????????????####### ############# ##### | | ?#??????????????# !! % | | +???????????? *%= % | | #???????? ?????###+#################### ##### | | #??????? #???????????????????????????# #?????? | | ???????? #???????????????????????????# #?????? | | ######## #???????????????????????????# #?????? | | ""T""" #???????????????????????????# #?????? | | "" """ #???????????????????????????# #?????? | | #??????????????????????????## ##????? | | #????????????????####+##+### ###### | | #??????????????? | | #???????????????????# | | #???????????????????#+######* ##### | | #??????????????????????????## ##????? | | #???????????????????????????# #?????? | | #???????????????????????????# #?????? | | ## #???????????????????????????# #?????? | +----------------------------------------------------+ Best States ------------- Heat Dissipation 108 Energy Generation 43 Energy Capacity 630 Matter Stores 300 Matter Capacity 300 Sight Range 16 Terrain Scan Range 24 Terrain Scan Density 10 Jamming Range 16 Base Temperature (-) 200 Armor Coverage 450 Resistance: EM 25 Power Shielding 90 Weapon Cycling 20 Phase Shifting 5 Evasion (%) 70 Targeting Accuracy 24 Core Analysis 9 Recoil Reduction 6 Relay Coupler Types 1 Relay Coupler Value 25 Item Schematics ----------------- Hcp. Storage Unit | -9/Materials | Hacked Prc. Beam Rifle | -8/Materials | Scanalyzed Cld. Impulse Thruster | -3/Quarantine | Archive Imp. KE Penetrator | -3/Quarantine | Archive Prc. Matter Filter | -3/Quarantine | Archive Robot Schematics ------------------ M-13 Machinist | -9/Materials | Hacked Fabricated ------------ Nothing Repaired ---------- Nothing Studied --------- Lgt. Treads | -8/Materials | Hacked Arm. Treads | -8/Materials | Hacked Alien Tech Used ----------------- Subatomic Replicator Core Cannon Transdimensional Reconstructor Supercharged TR High-powered Transdimensional Reconstructor Achievements -------------- Main Advantage Some Acronyms Are Better Than Others Challenges ------------ None Game ------ Seed ReactionSupersonicBlaster Manual? 1 Play Time 01:41:14 Cumulative 277.0 hours Start 2025.11.12 @ 19:30:38 End 2025.11.12 @ 23:25:37 Sessions 3 Manual Loads 0 Difficulty Rogue Special Mode None Game No. 598 Rogue 598 Adventurer 0 Explorer 0 Win Type - Total 20 Types 14/0/4/1/1/0/0/0/0/0 Lore% 80 Gallery% 71 Achievement% 49 Wizard Run 0 Options --------- Layout 0 ASCII 0 Keyboard 0 Movement Numpad Keybinds 0 Fullscreen 2 Font 18/Terminus Map View 76x50 Zoom Use 0% Tactical HUD 1 Map Filters NONE Filters SATURATION(100) Steam 1 RUN: 753788b5-4fbf-45ed-b0ce-914483195612